[Event "21th IPCA World Individual Chp."]
[Site "followchess.com"]
[Date "2022.05.15"]
[Round "8"]
[White "Aleksandrova, Aleksandra"]
[Black "Cosic, Radoslav"]
[Result "1-0"]
[WhiteElo "1687"]
[BlackElo "2003"]
[ECO "A45"]
[WhiteFed "ISR"]
[BlackFed "CRO"]
[FCGameId "-1708895354"]
[WhiteFideId "4144198"]
[BlackFideId "14504367"]
[TimeControl "5400+30"]

1. d4 {[%clk 1:30:55]} Nf6 {[%clk 1:30:48]} 2. Nd2 {[%clk 1:31:17]} d5 
{[%clk 1:31:10]} 3. e3 {[%clk 1:31:41]} e6 {[%clk 1:31:03]} 4. Bd3 
{[%clk 1:32:00]} c5 {[%clk 1:31:07]} 5. c3 {[%clk 1:32:22]} Nc6 {[%clk 1:31:20]} 
6. f4 {[%clk 1:32:34]} Bd6 {[%clk 1:30:39]} 7. g3 {[%clk 1:31:08]} h5 
{[%clk 1:29:29]} 8. a4 {[%clk 1:30:28]} Ng4 {[%clk 1:29:16]} 9. Ndf3 
{[%clk 1:23:57]} f5 {[%clk 1:27:45]} 10. Ne5 {[%clk 1:21:23]} O-O 
{[%clk 1:28:06]} 11. h3 {[%clk 1:04:30]} Nf6 {[%clk 1:28:22]} 12. Ng6 
{[%clk 1:03:22]} Rf7 {[%clk 1:27:41]} 13. Nf3 {[%clk 1:03:30]} c4 
{[%clk 1:27:29]} 14. Bc2 {[%clk 1:01:42]} Ne7 {[%clk 1:26:54]} 15. Nge5 
{[%clk 0:53:12]} Rf8 {[%clk 1:27:12]} 16. Nh4 {[%clk 0:46:21]} Qe8 
{[%clk 1:26:49]} 17. g4 {[%clk 0:45:28]} hxg4 {[%clk 1:23:58]} 18. hxg4 
{[%clk 0:34:09]} Bxe5 {[%clk 1:24:26]} 19. g5 Bxf4 {[%clk 1:15:45]} 20. exf4 
{[%clk 0:28:34]} Ng4 {[%clk 1:15:18]} 21. Qf3 {[%clk 0:28:12]} Kf7 
{[%clk 1:08:36]} 22. Bd2 {[%clk 0:23:55]} Bd7 {[%clk 1:08:40]} 23. Ke2 
{[%clk 0:22:09]} Rh8 {[%clk 1:08:15]} 24. g6+ {[%clk 0:21:21]} Kf6 
{[%clk 1:06:55]} 25. Rag1 {[%clk 0:19:59]} Rxh4 {[%clk 1:04:01]} 26. Rxh4 
{[%clk 0:20:05]} Nxg6 {[%clk 1:04:29]} 27. Rhxg4 {[%clk 0:20:09]} Ne7 
{[%clk 1:00:06]} 28. Rxg7 {[%clk 0:19:50]} Qh8 {[%clk 1:00:35]} 29. Qg3 
{[%clk 0:18:01]} Qh5+ {[%clk 1:00:42]} 30. Ke1 {[%clk 0:18:05]} Rh8 
{[%clk 1:00:36]} 31. Bd1 {[%clk 0:16:49]} Qh4 {[%clk 1:01:03]} 32. Be3 
{[%clk 0:13:42]} Qxg3+ {[%clk 1:01:04]} 33. R1xg3 {[%clk 0:13:25]} a5 
{[%clk 1:01:32]} 34. Bg1 {[%clk 0:13:14]} Bc6 {[%clk 1:01:56]} 35. Kf2 
{[%clk 0:12:11]} Rh4 {[%clk 1:02:20]} 36. Ke3 {[%clk 0:11:45]} Rh1 
{[%clk 1:01:38]} 37. R7g5 {[%clk 0:10:30]} Be8 {[%clk 1:01:45]} 38. Bf3 
{[%clk 0:10:23]} Rh8 {[%clk 1:01:56]} 39. Rg2 {[%clk 0:10:30]} Bxa4 
{[%clk 1:01:00]} 40. Rh2 {[%clk 0:10:47]} Rxh2 {[%clk 1:01:09]} 41. Bxh2 
{[%clk 0:11:16]} Bc2 {[%clk 0:58:43]} 42. Bg3 {[%clk 0:11:27]} Be4 
{[%clk 0:58:58]} 43. Bh5 {[%clk 0:11:14]} e5 {[%clk 0:59:07]} 44. dxe5+ 
{[%clk 0:10:46]} Ke6 {[%clk 0:59:36]} 45. Bh4 {[%clk 0:10:50]} b5 
{[%clk 0:58:25]} 46. Rg7 {[%clk 0:10:16]} d4+ {[%clk 0:58:42]} 47. Kxd4 1-0

[Event "21th IPCA World Individual Chp."]
[Site "followchess.com"]
[Date "2022.05.15"]
[Round "8"]
[White "Srimskov, Elishar"]
[Black "Pilimon, Zbigniew"]
[Result "1-0"]
[WhiteElo "1992"]
[BlackElo "1620"]
[ECO "A15"]
[WhiteFed "ISR"]
[BlackFed "POL"]
[FCGameId "864665149"]
[WhiteFideId "2807254"]
[BlackFideId "1110489"]
[TimeControl "5400+30"]

1. Nf3 {[%clk 1:30:50]} Nf6 {[%clk 1:30:24]} 2. c4 {[%clk 1:30:34]} e6 
{[%clk 1:30:29]} 3. Nc3 {[%clk 1:30:43]} d5 {[%clk 1:30:29]} 4. e3 
{[%clk 1:30:34]} c5 {[%clk 1:30:39]} 5. cxd5 {[%clk 1:30:14]} exd5 
{[%clk 1:30:50]} 6. d4 {[%clk 1:30:03]} Nc6 {[%clk 1:30:10]} 7. Be2 
{[%clk 1:30:01]} Be7 {[%clk 1:26:02]} 8. O-O {[%clk 1:29:50]} O-O 
{[%clk 1:26:24]} 9. a3 {[%clk 1:26:16]} a6 {[%clk 1:26:16]} 10. dxc5 
{[%clk 1:26:06]} Bxc5 {[%clk 1:26:26]} 11. b4 {[%clk 1:25:37]} Be7 
{[%clk 1:25:17]} 12. Bb2 {[%clk 1:24:30]} b5 {[%clk 1:24:54]} 13. Nd4 
{[%clk 1:24:13]} Ne5 {[%clk 1:24:50]} 14. Qb1 {[%clk 1:18:15]} Qb6 
{[%clk 1:20:34]} 15. Rd1 {[%clk 1:16:24]} Rd8 {[%clk 1:20:45]} 16. Nf5 
{[%clk 1:10:53]} Bf8 {[%clk 1:20:13]} 17. Nxd5 {[%clk 1:10:36]} Nxd5 
{[%clk 1:18:24]} 18. Bxe5 {[%clk 1:09:58]} Qe6 {[%clk 1:17:45]} 19. Bb2 
{[%clk 0:49:41]} Bb7 {[%clk 1:15:54]} 20. Bf3 {[%clk 0:48:46]} Rac8 
{[%clk 1:07:30]} 21. Nd4 {[%clk 0:46:11]} Qe7 {[%clk 1:03:25]} 22. Qd3 
{[%clk 0:42:13]} Nb6 23. Bxb7 {[%clk 0:39:04]} Qxb7 {[%clk 0:57:40]} 24. Rac1 
{[%clk 0:33:29]} Nc4 {[%clk 0:57:45]} 25. Qe2 {[%clk 0:32:51]} Qe4 
{[%clk 0:52:45]} 26. Rc2 {[%clk 0:28:53]} Rd6 {[%clk 0:51:21]} 27. Bc1 
{[%clk 0:25:46]} Rcd8 {[%clk 0:50:59]} 28. Re1 {[%clk 0:25:18]} h5 
{[%clk 0:47:25]} 29. a4 {[%clk 0:21:17]} Rg6 {[%clk 0:45:41]} 30. f3 
{[%clk 0:21:21]} Qe5 {[%clk 0:45:44]} 31. axb5 {[%clk 0:21:08]} axb5 
{[%clk 0:45:53]} 32. Nxb5 {[%clk 0:18:34]} Bxb4 {[%clk 0:44:16]} 33. Rf1 
{[%clk 0:18:49]} Qxb5 {[%clk 0:41:18]} 34. Qxc4 {[%clk 0:18:59]} Qxc4 
{[%clk 0:39:57]} 35. Rxc4 {[%clk 0:19:26]} Rb6 {[%clk 0:39:00]} 36. Kf2 
{[%clk 0:17:20]} Be7 {[%clk 0:38:01]} 37. Ke2 {[%clk 0:17:25]} Rb3 
{[%clk 0:35:15]} 38. Rd1 {[%clk 0:17:30]} Rxd1 {[%clk 0:34:24]} 39. Kxd1 
{[%clk 0:17:58]} Bf6 {[%clk 0:33:51]} 40. Ke2 {[%clk 0:17:57]} g6 
{[%clk 0:28:17]} 41. g3 {[%clk 0:18:04]} g5 {[%clk 0:27:47]} 42. h4 
{[%clk 0:16:54]} Kg7 {[%clk 0:27:37]} 43. hxg5 {[%clk 0:16:40]} Bxg5 
{[%clk 0:27:45]} 44. Rc5 {[%clk 0:15:54]} Kg6 {[%clk 0:27:50]} 45. Rc6+ Bf6 46. 
e4 {[%clk 0:15:55]} Rc3 {[%clk 0:26:20]} 47. Rxf6+ {[%clk 0:15:42]} 1-0

[Event "21th IPCA World Individual Chp."]
[Site "followchess.com"]
[Date "2022.05.15"]
[Round "8"]
[White "Shchukina, Ekaterina"]
[Black "Mekus, Manuela"]
[Result "1-0"]
[WhiteElo "1496"]
[BlackElo "1644"]
[ECO "B07"]
[WhiteFed "RUS"]
[BlackFed "GER"]
[FCGameId "-1094516310"]
[WhiteFideId "34103055"]
[BlackFideId "16202562"]
[TimeControl "5400+30"]

1. e4 {[%clk 1:30:39]} d6 {[%clk 1:30:51]} 2. d4 {[%clk 1:31:00]} Nd7 
{[%clk 1:31:06]} 3. Nc3 {[%clk 1:30:01]} g6 {[%clk 1:29:19]} 4. Be3 
{[%clk 1:29:53]} Bg7 {[%clk 1:29:26]} 5. Bc4 {[%clk 1:28:50]} Ngf6 
{[%clk 1:29:27]} 6. f3 {[%clk 1:29:12]} c6 {[%clk 1:29:36]} 7. a3 
{[%clk 1:26:17]} b5 {[%clk 1:29:05]} 8. Ba2 {[%clk 1:26:23]} Qc7 
{[%clk 4:43:59]} 9. Nge2 {[%clk 1:26:09]} a6 {[%clk 1:19:22]} 10. O-O 
{[%clk 1:15:08]} O-O {[%clk 1:07:55]} 11. Qd2 {[%clk 1:05:33]} e5 
{[%clk 1:06:28]} 12. Rad1 {[%clk 0:51:17]} Nb6 {[%clk 1:04:47]} 13. dxe5 
{[%clk 0:49:19]} dxe5 {[%clk 1:04:56]} 14. Qd6 {[%clk 0:44:04]} Qb7 
{[%clk 0:59:43]} 15. b4 {[%clk 0:33:39]} Re8 {[%clk 0:51:00]} 16. Qd2 
{[%clk 0:32:04]} Be6 {[%clk 0:49:50]} 17. Bxe6 {[%clk 0:31:36]} Rxe6 
{[%clk 0:49:52]} 18. Qc1 {[%clk 0:28:24]} Nc4 {[%clk 0:49:42]} 19. Bf2 
{[%clk 0:28:09]} Ree8 {[%clk 0:49:32]} 20. Rd3 {[%clk 0:23:37]} Rad8 
{[%clk 0:48:09]} 21. Rfd1 {[%clk 0:24:00]} Qc7 {[%clk 0:46:56]} 22. Nb1 
{[%clk 0:23:50]} Rxd3 {[%clk 0:47:16]} 23. cxd3 {[%clk 0:23:00]} Nd6 
{[%clk 0:46:53]} 24. Qc3 {[%clk 0:21:25]} Nb7 25. Rc1 Rc8 {[%clk 0:45:17]} 26. 
Nd2 {[%clk 0:19:34]} Nd7 {[%clk 0:44:46]} 27. Nb3 {[%clk 0:19:56]} f5 
{[%clk 0:35:51]} 28. Qc2 {[%clk 0:18:48]} a5 29. Qa2 {[%clk 0:13:51]} Kh8 
{[%clk 0:34:53]} 30. d4 {[%clk 0:10:32]} a4 {[%clk 0:34:12]} 31. Nd2 
{[%clk 0:10:51]} exd4 {[%clk 0:31:27]} 32. Nxd4 {[%clk 0:10:09]} Qd6 
{[%clk 0:30:39]} 33. Nxb5 {[%clk 0:09:05]} Qd3 {[%clk 0:30:10]} 34. Na7 
{[%clk 0:08:02]} Rc7 {[%clk 0:30:26]} 35. b5 {[%clk 0:02:11]} c5 
{[%clk 0:29:56]} 36. exf5 {[%clk 0:01:00]} gxf5 {[%clk 0:29:58]} 37. Bg3 
{[%clk 0:00:46]} Qe3+ {[%clk 0:29:27]} 38. Bf2 {[%clk 0:00:53]} Qd3 
{[%clk 0:29:31]} 39. Bg3 {[%clk 0:00:44]} Ne5 {[%clk 0:29:13]} 40. Nc6 
{[%clk 0:00:55]} Qe3+ {[%clk 0:28:25]} 41. Bf2 {[%clk 0:01:10]} Qe2 
{[%clk 0:27:44]} 42. Re1 {[%clk 0:01:13]} Qxb5 {[%clk 0:26:39]} 43. Nxe5 
{[%clk 0:01:29]} Re7 {[%clk 0:26:27]} 44. Nf7+ {[%clk 0:01:26]} Rxf7 
{[%clk 0:26:21]} 45. Qxf7 {[%clk 0:01:45]} Nd6 {[%clk 0:26:39]} 46. Qc7 
{[%clk 0:01:21]} Ne8 {[%clk 0:26:32]} 47. Qxc5 {[%clk 0:01:23]} Qd7 
{[%clk 0:26:20]} 48. Nc4 {[%clk 0:01:02]} Nc7 {[%clk 0:23:46]} 49. Nb6 
{[%clk 0:00:59]} Qd8 {[%clk 0:22:50]} 50. Nxa4 {[%clk 0:01:01]} Qd7 51. Nb6 
{[%clk 0:01:11]} Qd8 {[%clk 0:22:39]} 52. a4 {[%clk 0:01:23]} Na6 
{[%clk 0:22:23]} 53. Qc8 {[%clk 0:01:13]} Qxc8 {[%clk 0:22:22]} 54. Nxc8 
{[%clk 0:01:35]} Bc3 {[%clk 0:22:34]} 55. Re8+ {[%clk 0:01:35]} Kg7 
{[%clk 0:22:48]} 56. Re7+ Kg8 {[%clk 0:22:48]} 57. Nb6 {[%clk 0:01:35]} Nb4 
{[%clk 0:22:48]} 58. Nc4 {[%clk 0:01:35]} Nc6 {[%clk 0:22:48]} 59. Rc7 
{[%clk 0:01:35]} Ne5 {[%clk 0:22:48]} 60. Nxe5 {[%clk 0:01:35]} Bxe5 
{[%clk 0:22:48]} 61. Ra7 {[%clk 0:01:35]} 1-0

[Event "21th IPCA World Individual Chp."]
[Site "followchess.com"]
[Date "2022.05.15"]
[Round "8"]
[White "Volodarsky, Michael"]
[Black "Vardi, Moshe"]
[Result "1/2-1/2"]
[WhiteElo "1400"]
[BlackElo "1631"]
[ECO "D21"]
[WhiteFed "ISR"]
[BlackFed "ISR"]
[FCGameId "363336720"]
[WhiteFideId "2814366"]
[BlackFideId "2801710"]
[TimeControl "5400+30"]

1. d4 {[%clk 1:30:55]} d5 {[%clk 1:22:40]} 2. c4 {[%clk 1:31:16]} e6 
{[%clk 1:22:53]} 3. Nf3 dxc4 {[%clk 1:23:03]} 4. Nc3 {[%clk 1:30:44]} c5 
{[%clk 1:21:36]} 5. Qa4+ {[%clk 1:28:23]} Bd7 {[%clk 1:21:34]} 6. Qxc4 
{[%clk 1:28:43]} cxd4 {[%clk 1:21:40]} 7. Nxd4 {[%clk 1:25:17]} a6 8. g3 
{[%clk 1:21:59]} e5 {[%clk 1:20:18]} 9. Nf3 {[%clk 1:15:54]} Nc6 
{[%clk 1:18:48]} 10. a3 {[%clk 1:12:19]} Be6 {[%clk 1:15:15]} 11. Qe4 
{[%clk 1:09:01]} Nf6 {[%clk 1:14:52]} 12. Qb1 {[%clk 1:09:14]} h6 
{[%clk 1:13:43]} 13. Bg2 {[%clk 1:06:28]} Bb3 {[%clk 1:11:20]} 14. e3 
{[%clk 0:58:42]} Bc4 {[%clk 1:09:18]} 15. b3 {[%clk 0:55:17]} Bd3 
{[%clk 1:09:19]} 16. Qb2 {[%clk 0:54:19]} e4 {[%clk 1:08:44]} 17. Nd2 
{[%clk 0:53:32]} Qe7 {[%clk 1:08:04]} 18. Ne2 {[%clk 0:50:35]} Rd8 
{[%clk 1:06:32]} 19. Nf4 {[%clk 0:50:04]} Qd7 {[%clk 1:06:09]} 20. Qc3 
{[%clk 0:46:06]} Qg4 21. h4 {[%clk 0:40:51]} Nd5 {[%clk 0:58:31]} 22. Bh3 
{[%clk 0:30:43]} Qd1+ {[%clk 0:52:19]} 23. Kxd1 {[%clk 0:30:22]} Nxc3+ 
{[%clk 0:52:21]} 24. Ke1 {[%clk 0:30:33]} g6 {[%clk 0:49:24]} 25. Nxd3 
{[%clk 0:30:54]} exd3 {[%clk 0:49:05]} 26. Bb2 {[%clk 0:30:00]} Bg7 
{[%clk 0:43:25]} 1/2-1/2

[Event "21th IPCA World Individual Chp."]
[Site "followchess.com"]
[Date "2022.05.15"]
[Round "8"]
[White "Oliel, Yehonatan"]
[Black "Freiberg, Doron"]
[Result "1-0"]
[WhiteElo "1535"]
[BlackElo "1244"]
[ECO "B44"]
[WhiteFed "ISR"]
[BlackFed "ISR"]
[FCGameId "1571615300"]
[WhiteFideId "2834928"]
[BlackFideId "2841312"]
[TimeControl "5400+30"]

1. e4 {[%clk 1:30:48]} c5 {[%clk 1:30:56]} 2. Nf3 {[%clk 1:30:10]} Nc6 
{[%clk 1:31:19]} 3. d4 {[%clk 1:29:46]} cxd4 {[%clk 1:31:43]} 4. Nxd4 
{[%clk 1:29:48]} e6 {[%clk 1:32:09]} 5. Be2 {[%clk 1:28:27]} Qc7 
{[%clk 1:31:34]} 6. Be3 {[%clk 1:26:02]} Nf6 {[%clk 1:29:09]} 7. Nd2 
{[%clk 1:21:29]} a6 {[%clk 1:23:20]} 8. f4 {[%clk 1:19:36]} Nxd4 
{[%clk 1:21:22]} 9. Bxd4 {[%clk 1:18:44]} Qxf4 {[%clk 1:17:29]} 10. Bf3 
{[%clk 1:15:52]} Be7 {[%clk 1:13:14]} 11. O-O {[%clk 1:14:33]} Qc7 
{[%clk 1:10:38]} 12. e5 {[%clk 1:04:29]} Bc5 {[%clk 0:54:50]} 13. c3 
{[%clk 1:01:34]} Bxd4+ {[%clk 0:54:35]} 14. cxd4 {[%clk 1:01:47]} Nd5 
{[%clk 0:52:23]} 15. Bxd5 {[%clk 1:01:22]} exd5 {[%clk 0:52:49]} 16. Qf3 
{[%clk 1:01:14]} O-O {[%clk 0:52:12]} 17. Qxd5 {[%clk 1:00:26]} Qc6 
{[%clk 0:51:58]} 18. Qb3 {[%clk 0:58:34]} b5 {[%clk 0:50:48]} 19. Rac1 
{[%clk 0:56:14]} Qb6 20. Rf4 d6 {[%clk 0:40:10]} 21. Nc4 {[%clk 0:49:04]} Qc6 
22. Nxd6 {[%clk 0:44:05]} Qxc1+ {[%clk 0:36:20]} 23. Rf1 Qc7 24. h4 
{[%clk 0:41:05]} Be6 {[%clk 0:32:49]} 25. Qe3 {[%clk 0:39:32]} Bxa2 
{[%clk 0:28:11]} 26. h5 {[%clk 0:35:41]} Bd5 {[%clk 0:13:41]} 27. Qg5 
{[%clk 0:29:10]} f6 {[%clk 0:06:34]} 28. exf6 {[%clk 0:27:46]} Ra7 
{[%clk 0:03:22]} 29. Qxd5+ {[%clk 0:24:59]} Kh8 {[%clk 0:01:06]} 30. f7 
{[%clk 0:20:44]} Qd7 {[%clk 0:01:12]} 31. h6 {[%clk 0:20:20]} Qg4 
{[%clk 0:00:58]} 32. hxg7+ {[%clk 0:16:57]} Qxg7 33. Ne8 {[%clk 0:16:25]} Qg6 
{[%clk 0:00:32]} 34. Qe5+ {[%clk 0:16:34]} Qg7 {[%clk 0:00:42]} 35. Qxg7# 
{[%clk 0:16:08]} 1-0

[Event "21th IPCA World Individual Chp."]
[Site "followchess.com"]
[Date "2022.05.14"]
[Round "7"]
[White "Zilberman, Yaacov"]
[Black "Obodchuk, Andrei"]
[Result "1/2-1/2"]
[WhiteElo "2315"]
[BlackElo "2295"]
[ECO "E46"]
[WhiteFed "ISR"]
[BlackFed "RUS"]
[FCGameId "-1420275508"]
[WhiteFideId "2801612"]
[BlackFideId "4114310"]
[TimeControl "5400+30"]

1. d4 {[%clk 1:30:50]} Nf6 {[%clk 1:30:54]} 2. c4 {[%clk 1:31:01]} e6 
{[%clk 1:31:17]} 3. Nc3 {[%clk 1:31:11]} Bb4 {[%clk 1:31:41]} 4. e3 
{[%clk 1:31:00]} O-O {[%clk 1:31:45]} 5. Be2 {[%clk 1:31:03]} d5 
{[%clk 1:27:02]} 6. Nf3 {[%clk 1:31:05]} b6 {[%clk 1:26:25]} 7. O-O 
{[%clk 1:31:06]} Bb7 {[%clk 1:26:26]} 8. Bd2 {[%clk 1:30:39]} Bd6 
{[%clk 1:23:33]} 9. Rc1 {[%clk 1:27:45]} a6 {[%clk 1:23:49]} 10. cxd5 
{[%clk 1:25:23]} exd5 {[%clk 1:24:11]} 11. Ne5 {[%clk 1:24:01]} c5 
{[%clk 1:22:36]} 12. f4 {[%clk 1:14:41]} Nc6 {[%clk 1:21:06]} 13. Bf3 
{[%clk 1:12:28]} cxd4 {[%clk 1:19:10]} 14. Nxc6 {[%clk 1:11:49]} Bxc6 
{[%clk 1:19:36]} 15. exd4 {[%clk 1:12:06]} Qb8 {[%clk 1:14:36]} 16. g3 
{[%clk 1:08:46]} Qb7 {[%clk 1:12:21]} 17. Qb3 {[%clk 1:02:42]} Rfe8 
{[%clk 1:06:32]} 18. Rfe1 {[%clk 1:01:20]} b5 {[%clk 1:04:49]} 19. Rxe8+ 
{[%clk 0:58:24]} Rxe8 {[%clk 1:05:14]} 20. Re1 {[%clk 0:57:29]} Rxe1+ 
{[%clk 1:00:53]} 21. Bxe1 {[%clk 0:57:51]} b4 {[%clk 0:56:05]} 22. Nd1 
{[%clk 0:52:53]} a5 {[%clk 0:53:58]} 23. Ne3 {[%clk 0:48:14]} Qb6 
{[%clk 0:45:22]} 24. Bf2 {[%clk 0:46:28]} a4 {[%clk 0:45:21]} 25. Qc2 
{[%clk 0:45:16]} Qb7 {[%clk 0:39:01]} 26. Ng4 {[%clk 0:38:04]} Ne4 
{[%clk 0:36:52]} 27. Ne5 {[%clk 0:37:55]} Be8 {[%clk 0:36:47]} 28. Be3 
{[%clk 0:36:33]} f6 {[%clk 0:33:52]} 29. Nd3 {[%clk 0:36:24]} Qe7 
{[%clk 0:32:11]} 30. Qc1 {[%clk 0:34:24]} h5 {[%clk 0:30:21]} 31. Nc5 
{[%clk 0:31:43]} f5 {[%clk 0:26:00]} 1/2-1/2

[Event "21th IPCA World Individual Chp."]
[Site "followchess.com"]
[Date "2022.05.14"]
[Round "7"]
[White "Yarmonov, Igor"]
[Black "Mikheev, Stanislav"]
[Result "0-1"]
[WhiteElo "2394"]
[BlackElo "2333"]
[ECO "A45"]
[WhiteFed "UKR"]
[BlackFed "SRB"]
[FCGameId "-63164274"]
[WhiteFideId "14114496"]
[BlackFideId "4135920"]
[TimeControl "5400+30"]

1. d4 {[%clk 1:30:58]} Nf6 {[%clk 1:30:49]} 2. Bf4 {[%clk 1:31:03]} c5 
{[%clk 1:30:26]} 3. dxc5 {[%clk 1:30:13]} Na6 {[%clk 1:28:34]} 4. c4 
{[%clk 1:29:14]} g6 {[%clk 1:25:54]} 5. Nc3 {[%clk 1:29:21]} Nxc5 
{[%clk 1:25:16]} 6. b4 {[%clk 1:27:29]} Nce4 {[%clk 1:20:06]} 7. Nxe4 
{[%clk 1:22:46]} Nxe4 {[%clk 1:20:32]} 8. Qd4 {[%clk 1:21:16]} Nf6 
{[%clk 1:20:31]} 9. Bd2 {[%clk 1:21:37]} Bg7 {[%clk 1:20:35]} 10. Bc3 
{[%clk 1:22:03]} O-O {[%clk 1:15:59]} 11. e4 {[%clk 1:17:45]} b6 
{[%clk 1:12:40]} 12. f3 {[%clk 1:15:10]} d6 {[%clk 1:09:51]} 13. Qd2 
{[%clk 1:07:06]} Be6 {[%clk 1:08:38]} 14. Rc1 {[%clk 1:05:59]} Rc8 
{[%clk 1:08:12]} 15. Bd4 {[%clk 1:06:07]} Rc7 {[%clk 1:02:06]} 16. Rc3 
{[%clk 1:05:21]} Qc8 {[%clk 0:57:08]} 17. Qc1 {[%clk 1:02:17]} Qb7 
{[%clk 0:49:57]} 18. Bd3 {[%clk 1:02:22]} Nd7 {[%clk 0:49:39]} 19. Bxg7 
{[%clk 1:02:08]} Kxg7 {[%clk 0:50:04]} 20. f4 {[%clk 1:01:39]} f5 
{[%clk 0:41:37]} 21. Qe3 {[%clk 0:46:35]} Nf6 {[%clk 0:39:56]} 22. exf5 
{[%clk 0:46:18]} Qxg2 {[%clk 0:38:31]} 23. Qf3 {[%clk 0:46:45]} Qb2 
{[%clk 0:36:37]} 24. Ne2 {[%clk 0:46:37]} gxf5 {[%clk 0:35:52]} 25. O-O 
{[%clk 0:46:39]} Qxb4 {[%clk 0:35:20]} 26. h3 {[%clk 0:39:50]} Kh8 
{[%clk 0:33:42]} 27. Kh2 {[%clk 0:40:13]} Rg8 {[%clk 0:33:15]} 28. Rcc1 
{[%clk 0:39:25]} Qc5 {[%clk 0:25:13]} 29. Ng3 {[%clk 0:37:30]} Bc8 
{[%clk 0:24:26]} 30. Qe2 {[%clk 0:37:17]} Bb7 {[%clk 0:21:43]} 31. Rg1 
{[%clk 0:36:57]} Qd4 {[%clk 0:20:19]} 32. Rcf1 {[%clk 0:37:09]} e6 
{[%clk 0:17:05]} 33. Qxe6 {[%clk 0:36:16]} Rcg7 {[%clk 0:13:03]} 34. Qe2 
{[%clk 0:35:01]} Nh5 {[%clk 0:06:54]} 35. Be4 {[%clk 0:22:04]} Nxg3 
{[%clk 0:05:57]} 36. Rxg3 {[%clk 0:22:27]} Bxe4 {[%clk 0:05:57]} 37. Rfg1 
{[%clk 0:22:28]} 0-1

[Event "21th IPCA World Individual Chp."]
[Site "followchess.com"]
[Date "2022.05.14"]
[Round "7"]
[White "Campos, Eugenio"]
[Black "Gurbanov, Andrei"]
[Result "0-1"]
[WhiteElo "2247"]
[BlackElo "2302"]
[ECO "C63"]
[WhiteFed "ANG"]
[BlackFed "ISR"]
[FCGameId "-1140312609"]
[WhiteFideId "10100156"]
[BlackFideId "13503391"]
[TimeControl "5400+30"]

1. e4 {[%clk 1:30:57]} e5 {[%clk 1:30:02]} 2. Nf3 {[%clk 1:31:18]} Nc6 
{[%clk 1:30:24]} 3. Bb5 {[%clk 1:31:38]} f5 {[%clk 1:30:48]} 4. d3 
{[%clk 1:31:58]} fxe4 {[%clk 1:31:08]} 5. dxe4 {[%clk 1:32:22]} Nf6 
{[%clk 1:31:35]} 6. O-O {[%clk 1:32:18]} Bc5 {[%clk 1:31:51]} 7. Bg5 
{[%clk 1:32:32]} d6 {[%clk 1:30:02]} 8. Nc3 {[%clk 1:32:07]} O-O 
{[%clk 1:28:59]} 9. Nd5 {[%clk 1:32:11]} Kh8 {[%clk 1:27:42]} 10. Nh4 
{[%clk 1:28:39]} Be6 {[%clk 1:21:02]} 11. c3 {[%clk 1:22:38]} Ne7 
{[%clk 1:20:09]} 12. Nxe7 {[%clk 1:19:32]} Qxe7 {[%clk 1:20:27]} 13. b4 
{[%clk 1:19:50]} Bb6 {[%clk 1:20:47]} 14. a4 {[%clk 1:20:13]} a5 
{[%clk 1:19:57]} 15. Bd3 {[%clk 1:20:01]} Qf7 {[%clk 1:20:14]} 16. Be3 
{[%clk 1:09:40]} Bb3 {[%clk 1:15:12]} 17. Bc2 {[%clk 1:08:48]} Bxc2 
{[%clk 1:14:57]} 18. Qxc2 {[%clk 1:09:08]} Bxe3 {[%clk 1:15:24]} 19. fxe3 
{[%clk 1:09:01]} Qc4 {[%clk 1:15:49]} 20. bxa5 {[%clk 1:09:19]} Rxa5 
{[%clk 1:15:14]} 21. Rab1 {[%clk 1:09:13]} Qxa4 {[%clk 1:13:59]} 22. Qxa4 
{[%clk 1:04:27]} Rxa4 {[%clk 1:14:27]} 23. Rxb7 {[%clk 1:04:45]} Rc4 
{[%clk 1:13:49]} 24. g4 {[%clk 1:04:37]} g6 {[%clk 1:12:41]} 25. g5 
{[%clk 0:57:12]} Nd7 {[%clk 1:13:01]} 26. Rc1 {[%clk 0:54:58]} Rf7 27. Rb4 
{[%clk 0:53:47]} Rc6 {[%clk 1:12:01]} 28. Kg2 {[%clk 0:53:54]} Nc5 
{[%clk 1:12:22]} 29. Rb8+ {[%clk 0:53:31]} Kg7 {[%clk 1:12:49]} 30. Ra1 
{[%clk 0:53:46]} Ne6 {[%clk 1:12:46]} 31. Nf3 {[%clk 0:53:55]} Rxc3 
{[%clk 1:12:05]} 32. Raa8 {[%clk 0:52:56]} Rf8 {[%clk 1:11:07]} 33. Re8 
{[%clk 0:52:38]} Rxe8 {[%clk 1:11:27]} 34. Rxe8 {[%clk 0:53:05]} Kf7 
{[%clk 1:11:53]} 0-1

[Event "21th IPCA World Individual Chp."]
[Site "followchess.com"]
[Date "2022.05.14"]
[Round "7"]
[White "Lipilin, Ilia"]
[Black "Alperovich, Asher"]
[Result "1-0"]
[WhiteElo "2198"]
[BlackElo "1865"]
[ECO "A03"]
[WhiteFed "RUS"]
[BlackFed "ISR"]
[FCGameId "989141406"]
[WhiteFideId "54113245"]
[BlackFideId "2803275"]
[TimeControl "5400+30"]

1. f4 {[%clk 1:30:56]} d5 {[%clk 1:25:31]} 2. Nf3 {[%clk 1:31:14]} Nf6 
{[%clk 1:25:54]} 3. d3 {[%clk 1:31:32]} b6 {[%clk 1:25:33]} 4. g3 
{[%clk 1:29:13]} Bb7 {[%clk 1:24:30]} 5. Bg2 {[%clk 1:29:32]} g6 
{[%clk 1:18:35]} 6. c3 {[%clk 1:28:10]} Bg7 {[%clk 1:17:46]} 7. O-O 
{[%clk 1:28:30]} c5 {[%clk 1:16:34]} 8. e4 {[%clk 1:25:52]} dxe4 
{[%clk 1:12:39]} 9. Ng5 {[%clk 1:26:13]} O-O {[%clk 1:11:24]} 10. Nxe4 
{[%clk 1:21:39]} Nc6 {[%clk 1:08:04]} 11. Be3 {[%clk 1:21:08]} Qd7 
{[%clk 1:04:14]} 12. Na3 {[%clk 1:18:32]} Rad8 {[%clk 1:00:27]} 13. Nxf6+ 
{[%clk 1:06:00]} Bxf6 {[%clk 1:00:05]} 14. Qa4 {[%clk 1:01:01]} Na5 
{[%clk 0:45:44]} 15. Qxd7 {[%clk 0:50:00]} Rxd7 {[%clk 0:46:02]} 16. Be4 
{[%clk 0:50:22]} Rfd8 {[%clk 0:45:09]} 17. Rab1 {[%clk 0:47:07]} Ba6 
{[%clk 0:38:46]} 18. c4 {[%clk 0:47:10]} Bb7 {[%clk 0:36:42]} 19. Rfe1 
{[%clk 0:41:42]} Nc6 {[%clk 0:35:33]} 20. Nc2 {[%clk 0:39:20]} Kg7 
{[%clk 0:25:10]} 21. Kf2 {[%clk 0:38:22]} Kf8 {[%clk 0:25:13]} 22. a3 
{[%clk 0:35:08]} a5 {[%clk 0:23:47]} 23. b3 {[%clk 0:33:07]} e6 {[%clk 0:21:38]} 
24. Red1 {[%clk 0:28:40]} Bc3 {[%clk 0:20:44]} 25. Ke2 {[%clk 0:28:49]} f5 
{[%clk 0:20:14]} 26. Bf3 {[%clk 0:28:05]} Kf7 {[%clk 0:18:10]} 27. Bf2 
{[%clk 0:21:57]} Ba8 {[%clk 0:17:47]} 28. Be1 {[%clk 0:19:57]} Bxe1 
{[%clk 0:16:29]} 29. Bxc6 {[%clk 0:18:23]} Bxc6 {[%clk 0:16:11]} 30. Nxe1 
{[%clk 0:18:43]} Kf6 {[%clk 0:14:13]} 31. b4 {[%clk 0:18:56]} axb4 
{[%clk 0:13:49]} 32. axb4 {[%clk 0:19:24]} Ra8 {[%clk 0:13:40]} 33. b5 
{[%clk 0:12:35]} Bb7 {[%clk 0:13:23]} 34. Ra1 {[%clk 0:12:56]} Rdd8 
{[%clk 0:13:05]} 35. Ke3 {[%clk 0:12:40]} e5 {[%clk 0:12:17]} 36. Nc2 
{[%clk 0:12:29]} Rxa1 {[%clk 0:11:30]} 37. Rxa1 {[%clk 0:12:07]} Ra8 
{[%clk 0:07:36]} 38. Rxa8 Bxa8 39. Na3 {[%clk 0:12:17]} h6 {[%clk 0:07:39]} 40. 
Nb1 {[%clk 0:12:35]} g5 {[%clk 0:07:35]} 41. Nc3 {[%clk 0:12:44]} h5 42. Na4 
{[%clk 0:11:08]} h4 {[%clk 0:05:40]} 43. Nxb6 {[%clk 0:11:02]} 1-0